[Event "47th GRE-chT 2019"]
[Site "Patra"]
[Date "2019.07.03"]
[Round "2.6"]
[White "Tsolakidou, Stavroula"]
[Black "Grammatikaki, Aggeliki"]
[Result "1-0"]
[ECO "E16"]
[WhiteElo "2423"]
[BlackElo "1672"]
[Annotator "NA"]
[PlyCount "61"]
[EventDate "2019.07.02"]
[EventCountry "GRE"]
[SourceTitle "playchess.com"]
[Source "ChessBase"]
[SourceQuality "1"]
[TimeControl "5400+30"]

1. d4 {[%emt 0:00:00]} Nf6 {[%emt 0:00:00]} 2. c4 {[%emt 0:00:00]} e6 {[%emt 0:00:00]} 3. g3 {[%emt 0:00:00]} Bb4+ {[%emt 0:00:00]} 4. Nd2 {[%emt 0:00:29]} O-O {[%emt 0:00:00]} 5. Bg2 {[%emt 0:03:00]} d5 {[%emt 0:00:19]} 6. Ngf3 {[%emt 0:07:37]} b6 {[%emt 0:00:59]} 7. O-O {[%emt 0:00:46]} Bb7 {[%emt 0:08:17]} 8. Ne5 {[%emt 0:26:48]} Nbd7 {[%emt 0:15:35]} 9. Qa4 {[%emt 0:08:28]} Bxd2 {[%emt 0:00:26]} 10. Bxd2 {[%emt 0:01:22]} Nxe5 {[%emt 0:00:05]} 11. dxe5 {[%emt 0:07:28]} Nd7 {[%emt 0:23:12]} 12. Bc3 $11 {[%emt 0:16:29]} Nc5 {[%emt 0:02:07]} 13. Qc2 {[%emt 0:02:34]} Qg5 {[%emt 0:10:22]} 14. cxd5 {[%emt 0:02:33]} Bxd5 {[%emt 0:05:45]} 15. e4 {[%emt 0:09:30]} Bb7 {[%emt 0:09:26]} 16. f4 {[%emt 0:01:24]} Qg6 {[%emt 0:06:06]} 17. Bb4 {[%emt 0:03:49]} Rfd8 {[%emt 0:00:54]} 18. Bxc5 {[%emt 0:00:05]} bxc5 {[%emt 0:00:25]} 19. Rfe1 {[%emt 0:03:55]} f6 {[%emt 0:01:45]} 20. exf6 {[%emt 0:00:52]} gxf6 {[%emt 0:03:16]} 21. Qb3 {[%emt 0:01:14]} Rab8 {[%emt 0:01:23]} 22. Qxe6+ {[%emt 0:00:09]} Qf7 {[%emt 0:04:38]} 23. Qxf7+ {[%emt 0:00:04]} Kxf7 {[%emt 0:00:10]} 24. Red1 {[%emt 0:00:37]} Rd4 {[%emt 0:00:49]} 25. Rac1 {[%emt 0:01:18]} Rxd1+ {[%emt 0:00:04]} 26. Rxd1 {[%emt 0:00:33]} Re8 {[%emt 0:02:18]} 27. Rd7+ {[%emt 0:00:05]} Re7 {[%emt 0:00:12]} 28. Rxe7+ {[%emt 0:00:04]} Kxe7 {[%emt 0:00:05]} 29. Kf2 {[%emt 0:01:03]} Ke6 {[%emt 0:00:26]} 30. Ke3 {[%emt 0:00:48]} f5 {[%emt 0:00:06]} 31. exf5+ {[%emt 0:00:40] Kd5 Ke4+} 1-0

[Event "47th GRE-chT 2019"]
[Site "Patra"]
[Date "2019.07.03"]
[Round "2.6"]
[White "Mastrakouli, Evagelia"]
[Black "Louka, Magdalini"]
[Result "1-0"]
[ECO "D15"]
[WhiteElo "1788"]
[BlackElo "1766"]
[Annotator "NA"]
[PlyCount "127"]
[EventDate "2019.07.02"]
[EventCountry "GRE"]
[SourceTitle "playchess.com"]
[Source "ChessBase"]
[SourceQuality "1"]
[TimeControl "5400+30"]

1. d4 {[%emt 0:00:00]} d5 {[%emt 0:00:00]} 2. c4 {[%emt 0:00:00]} c6 {[%emt 0:00:00]} 3. Nc3 {[%emt 0:00:00]} Nf6 {[%emt 0:00:00]} 4. Nf3 {[%emt 0:00:54]} a6 {[%emt 0:01:08]} 5. a4 {[%emt 0:06:35]} e6 {[%emt 0:11:22]} 6. Bg5 {[%emt 0:03:54]} Be7 {[%emt 0:04:40]} 7. cxd5 {[%emt 0:01:12]} exd5 {[%emt 0:00:45]} 8. Qc2 {[%emt 0:01:07]} O-O {[%emt 0:03:14]} 9. e3 {[%emt 0:03:40]} Re8 {[%emt 0:01:49]} 10. Bd3 {[%emt 0:03:28]} h6 {[%emt 0:02:58]} 11. Bh4 {[%emt 0:01:54]} Nbd7 {[%emt 0:06:26]} 12. O-O {[%emt 0:02:25]} Ne4 {[%emt 0:04:13]} 13. Bg3 {[%emt 0:04:59]} Nxg3 {[%emt 0:03:14]} 14. hxg3 {[%emt 0:03:39]} Bd6 {[%emt 0:01:43]} 15. Nh4 {[%emt 0:09:13]} Nf6 {[%emt 0:01:58]} 16. Nf5 {[%emt 0:05:58]} Bxf5 {[%emt 0:04:51]} 17. Bxf5 {[%emt 0:00:06]} Qe7 {[%emt 0:00:26]} 18. Rfb1 {[%emt 0:26:26]} a5 {[%emt 0:05:11]} 19. Qd2 {[%emt 0:05:40]} Bb4 {[%emt 0:04:44]} 20. Qc2 {[%emt 0:01:14]} Bd6 {[%emt 0:01:11]} 21. Qd2 {[%emt 0:00:58]} Bb4 {[%emt 0:02:31]} 22. Qe2 {[%emt 0:01:51]} Ne4 {[%emt 0:02:29]} 23. Bxe4 {[%emt 0:03:04]} dxe4 {[%emt 0:00:39]} 24. Na2 {[%emt 0:00:22]} Bd6 {[%emt 0:00:30]} 25. Qc4 {[%emt 0:01:01]} Qd7 {[%emt 0:06:04]} 26. b4 {[%emt 0:02:52]} b5 {[%emt 0:03:37]} 27. axb5 {[%emt 0:00:38]} cxb5 {[%emt 0:00:08]} 28. Qd5 {[%emt 0:00:17]} a4 {[%emt 0:04:55]} 29. Nc3 {[%emt 0:00:42]} Qe7 {[%emt 0:07:07]} 30. Nxb5 {[%emt 0:04:08]} Bxb4 {[%emt 0:02:28]} 31. Qc4 {[%emt 0:01:11]} Bd6 {[%emt 0:01:05]} 32. Nxd6 {[%emt 0:02:00]} Qxd6 {[%emt 0:00:08]} 33. Rxa4 {[%emt 0:00:05]} Rxa4 {[%emt 0:01:00]} 34. Qxa4 {[%emt 0:00:04]} Rc8 {[%emt 0:00:54]} 35. Qa5 {[%emt 0:02:41]} Qc7 {[%emt 0:03:23]} 36. Qf5 {[%emt 0:01:20]} Re8 {[%emt 0:00:52]} 37. Rb5 {[%emt 0:00:55]} g6 {[%emt 0:00:54]} 38. Qd5 {[%emt 0:00:37]} Qd8 {[%emt 0:01:38]} 39. Qc6 {[%emt 0:00:51]} Qc8 {[%emt 0:01:07]} 40. Qd6 {[%emt 0:00:00]} Qe6 {[%emt 0:00:00]} 41. Qf4 {[%emt 0:00:00]} g5 {[%emt 0:00:00]} 42. Qc7 {[%emt 0:00:00]} Rc8 {[%emt 0:00:00]} 43. Rb8 {[%emt 0:00:00]} Rxb8 {[%emt 0:00:00]} 44. Qxb8+ {[%emt 0:00:00]} Kg7 {[%emt 0:00:00]} 45. Qb2 {[%emt 0:00:00]} Qd5 {[%emt 0:00:00]} 46. Qb6 {[%emt 0:00:00]} Qf5 {[%emt 0:00:00]} 47. Kf1 {[%emt 0:00:00]} Qg4 {[%emt 0:00:00]} 48. Qb1 {[%emt 0:00:00]} Qe6 {[%emt 0:00:00]} 49. Qd1 {[%emt 0:01:15]} Qc4+ {[%emt 0:00:00]} 50. Ke1 {[%emt 0:00:16]} Qc3+ {[%emt 0:00:00]} 51. Qd2 {[%emt 0:00:29]} Qa1+ {[%emt 0:00:00]} 52. Qd1 {[%emt 0:00:38]} Qc3+ {[%emt 0:00:00]} 53. Kf1 {[%emt 0:00:12]} Qc4+ {[%emt 0:00:00]} 54. Kg1 {[%emt 0:00:03]} Qd5 {[%emt 0:00:00]} 55. f3 {[%emt 0:00:37]} Qe6 {[%emt 0:00:00]} 56. d5 {[%emt 0:01:15]} Qe8 {[%emt 0:00:00]} 57. Qd4+ {[%emt 0:00:38]} Kg6 {[%emt 0:00:00]} 58. Qxe4+ {[%emt 0:01:23]} Qxe4 {[%emt 0:00:00]} 59. fxe4 {[%emt 0:00:02]} Kf6 {[%emt 0:00:00]} 60. Kf2 {[%emt 0:00:57]} g4 {[%emt 0:00:00]} 61. Ke2 {[%emt 0:00:11]} Ke5 {[%emt 0:00:00]} 62. Kd3 {[%emt 0:00:19]} f6 {[%emt 0:00:00]} 63. Kc4 {[%emt 0:00:33]} Kd6 {[%emt 0:00:00]} 64. Kd4 1-0

[Event "47th GRE-chT 2019"]
[Site "Patra"]
[Date "2019.07.03"]
[Round "2.7"]
[White "Kouta, Antonia"]
[Black "Giannoulaki, Ermofili"]
[Result "1-0"]
[ECO "B01"]
[WhiteElo "1762"]
[BlackElo "1269"]
[Annotator "NA"]
[PlyCount "69"]
[EventDate "2019.07.02"]
[EventCountry "GRE"]
[SourceTitle "playchess.com"]
[Source "ChessBase"]
[SourceQuality "1"]
[TimeControl "5400+30"]

1. e4 d5 2. exd5 Qxd5 3. Nf3 Bg4 4. Be2 Nc6 5. O-O O-O-O 6. h3 Bh5 7. Nc3 Qd7 {[%emt 0:12:25]} 8. b4 {[%emt 0:33:11]} Nxb4 {[%emt 0:11:54]} 9. Ne5 {[%emt 0:15:56]} Bxe2 {[%emt 0:01:07]} 10. Qxe2 {[%emt 0:00:38]} Qe6 {[%emt 0:05:25]} 11. Qb5 {[%emt 0:19:04]} Nd5 {[%emt 0:11:47]} 12. Rb1 {[%emt 0:03:37]} Nb6 {[%emt 0:04:33]} 13. Nd3 {[%emt 0:04:13]} a6 {[%emt 0:10:08]} 14. Qb4 {[%emt 0:02:55]} Qc4 {[%emt 0:02:48]} 15. Qb2 {[%emt 0:02:05]} Nf6 {[%emt 0:03:59]} 16. a4 {[%emt 0:01:02]} a5 {[%emt 0:01:31]} 17. Re1 {[%emt 0:03:03]} Nfd7 {[%emt 0:05:19]} 18. Ne5 {[%emt 0:03:40]} Qe6 {[%emt 0:01:49]} 19. Qb5 {[%emt 0:02:29]} f6 {[%emt 0:02:15]} 20. Nd3 {[%emt 0:01:21]} Qc4 {[%emt 0:02:24]} 21. Qxa5 {[%emt 0:00:34]} e5 {[%emt 0:01:02]} 22. Re4 {[%emt 0:05:18]} Qc6 {[%emt 0:02:24]} 23. Nb4 {[%emt 0:01:24]} Bxb4 {[%emt 0:02:43]} 24. Rexb4 {[%emt 0:00:21]} Nc5 {[%emt 0:00:54]} 25. Rb5 {[%emt 0:00:47]} Ne4 {[%emt 0:02:01]} 26. Nxe4 {[%emt 0:00:46]} Qxe4 {[%emt 0:00:07]} 27. R5b4 {[%emt 0:00:34]} Qxc2 {[%emt 0:00:48]} 28. Qb5 {[%emt 0:00:28]} Rd5 {[%emt 0:00:37]} 29. Qe2 {[%emt 0:00:23]} Nxa4 {[%emt 0:01:07]} 30. Kh2 {[%emt 0:00:39]} Nc3 {[%emt 0:00:40]} 31. Qc4 {[%emt 0:00:23]} Rxd2 {[%emt 0:08:34]} 32. Bxd2 {[%emt 0:00:28]} Qxd2 {[%emt 0:00:15]} 33. Rxb7 {[%emt 0:00:24]} Qf4+ {[%emt 0:01:49]} 34. Qxf4 {[%emt 0:00:09]} exf4 {[%emt 0:00:09]} 35. R1b3 {[%emt 0:00:34]} 1-0

[Event "47th GRE-chT 2019"]
[Site "Patra"]
[Date "2019.07.03"]
[Round "2.7"]
[White "Kratimenou, Maria"]
[Black "Tsivelekidou, Evgenia"]
[Result "0-1"]
[ECO "C49"]
[WhiteElo "1285"]
[BlackElo "1956"]
[Annotator "NA"]
[PlyCount "130"]
[EventDate "2019.07.02"]
[EventCountry "GRE"]
[SourceTitle "playchess.com"]
[Source "ChessBase"]
[SourceQuality "1"]
[TimeControl "5400+30"]

1. e4 {[%emt 0:00:00]} e5 {[%emt 0:00:00]} 2. Nf3 {[%emt 0:00:00]} Nc6 {[%emt 0:00:00]} 3. Nc3 {[%emt 0:00:00]} Nf6 {[%emt 0:00:00]} 4. Bb5 {[%emt 0:00:00]} Bb4 {[%emt 0:00:00]} 5. O-O {[%emt 0:00:00]} O-O {[%emt 0:00:05]} 6. d3 {[%emt 0:00:09]} Bxc3 {[%emt 0:00:55]} 7. bxc3 {[%emt 0:00:08]} d6 {[%emt 0:00:13]} 8. Re1 {[%emt 0:02:30]} Bg4 {[%emt 0:04:56]} 9. h3 {[%emt 0:02:19]} Bh5 {[%emt 0:01:19]} 10. Bxc6 {[%emt 0:03:19]} bxc6 {[%emt 0:00:08]} 11. d4 {[%emt 0:01:11]} Qe7 {[%emt 0:09:56]} 12. Qd3 {[%emt 0:21:27]} Bxf3 {[%emt 0:11:39]} 13. Qxf3 {[%emt 0:00:28]} Nd7 {[%emt 0:02:55]} 14. Ba3 $11 {[%emt 0:10:17]} Nb6 {[%emt 0:02:11]} 15. Qd3 {[%emt 0:03:31]} Qe6 {[%emt 0:04:56]} 16. Red1 {[%emt 0:18:33]} f5 {[%emt 0:10:51]} 17. f3 {[%emt 0:14:32]} f4 {[%emt 0:05:44]} 18. d5 {[%emt 0:03:39]} cxd5 {[%emt 0:02:13]} 19. exd5 {[%emt 0:00:19]} Qd7 {[%emt 0:03:05]} 20. c4 {[%emt 0:01:59]} Qa4 {[%emt 0:04:28]} 21. c5 {[%emt 0:03:01]} Nc4 {[%emt 0:01:50]} 22. Qb3 {[%emt 0:07:43]} Qxa3 {[%emt 0:08:10]} 23. Qxc4 {[%emt 0:00:11]} Qxc5+ {[%emt 0:01:57]} 24. Qxc5 {[%emt 0:00:24]} dxc5 {[%emt 0:00:05]} 25. Rab1 {[%emt 0:00:34]} Rab8 {[%emt 0:00:57]} 26. Rb3 {[%emt 0:01:07]} c4 {[%emt 0:11:47]} 27. Ra3 {[%emt 0:00:40]} Rb7 {[%emt 0:03:45]} 28. Ra4 {[%emt 0:00:35]} Rd8 {[%emt 0:02:31]} 29. Rxc4 {[%emt 0:00:26]} Kf7 {[%emt 0:01:20]} 30. Kf2 {[%emt 0:02:04]} Rd7 {[%emt 0:02:36]} 31. Rc5 {[%emt 0:01:15]} Rb2 {[%emt 0:01:47]} 32. a4 {[%emt 0:00:29]} Rb4 {[%emt 0:00:43]} 33. a5 {[%emt 0:00:15]} e4 {[%emt 0:01:08]} 34. fxe4 {[%emt 0:00:14]} Rxe4 {[%emt 0:00:06]} 35. Kf3 {[%emt 0:00:21]} Rb4 {[%emt 0:00:53]} 36. Rd3 {[%emt 0:01:08]} h6 {[%emt 0:01:36]} 37. c4 {[%emt 0:01:29]} g5 {[%emt 0:00:19]} 38. Rc6 {[%emt 0:00:53]} Kg7 {[%emt 0:00:25]} 39. Rc3 {[%emt 0:00:29]} Rb7 {[%emt 0:01:15]} 40. a6 {[%emt 0:00:00]} Rb1 {[%emt 0:00:00]} 41. Rd3 {[%emt 0:00:00]} h5 {[%emt 0:00:00]} 42. d6 {[%emt 0:00:00]} cxd6 {[%emt 0:00:00]} 43. Rcxd6 {[%emt 0:00:00]} Re7 {[%emt 0:00:00]} 44. Rd1 {[%emt 0:00:00]} Re3+ {[%emt 0:00:00]} 45. Kf2 {[%emt 0:00:00]} Rb2+ {[%emt 0:00:00]} 46. R1d2 {[%emt 0:00:00]} Rxd2+ {[%emt 0:00:00]} 47. Rxd2 {[%emt 0:00:00]} Rc3 {[%emt 0:00:29]} 48. Rd7+ {[%emt 0:00:00]} Kg6 {[%emt 0:00:00]} 49. Rxa7 {[%emt 0:00:00]} Rxc4 {[%emt 0:00:00]} 50. Rb7 {[%emt 0:00:00]} Ra4 {[%emt 0:00:00]} 51. a7 {[%emt 0:00:00]} g4 {[%emt 0:00:00]} 52. hxg4 {[%emt 0:00:00]} hxg4 {[%emt 0:00:00]} 53. Rb6+ {[%emt 0:00:00]} Kf5 {[%emt 0:00:00]} 54. Rb5+ {[%emt 0:00:00]} Ke6 {[%emt 0:00:00]} 55. Rb4 {[%emt 0:00:00]} Ra2+ {[%emt 0:00:00]} 56. Kf1 {[%emt 0:00:00]} Kf5 {[%emt 0:00:00]} 57. Rb5+ {[%emt 0:00:00]} Kg6 {[%emt 0:00:00]} 58. Rb4 {[%emt 0:00:00]} Kg5 {[%emt 0:00:00]} 59. Rb5+ {[%emt 0:00:00]} Kh4 {[%emt 0:00:00]} 60. Rb7 {[%emt 0:02:29]} Kg3 {[%emt 0:00:00]} 61. Rb3+ {[%emt 0:00:28]} f3 {[%emt 0:01:03]} 62. gxf3 {[%emt 0:00:24]} gxf3 {[%emt 0:00:29]} 63. Re3 {[%emt 0:06:21]} Ra1+ {[%emt 0:04:11]} 64. Re1 {[%emt 0:00:32]} Rxa7 {[%emt 0:00:05]} 65. Rd1 {[%emt 0:03:06]} Rh7 {[%emt 0:01:22]} 0-1

[Event "47th GRE-chT 2019"]
[Site "Patra"]
[Date "2019.07.03"]
[Round "2.8"]
[White "Zisiadis, Dimitrios"]
[Black "Michaelides, Konstantinos"]
[Result "0-1"]
[ECO "A13"]
[WhiteElo "2082"]
[BlackElo "2128"]
[Annotator "NA"]
[PlyCount "88"]
[EventDate "2019.07.02"]
[EventCountry "GRE"]
[SourceTitle "playchess.com"]
[Source "ChessBase"]
[SourceQuality "1"]
[TimeControl "5400+30"]

1. Nf3 {[%emt 0:00:00]} Nf6 {[%emt 0:00:00]} 2. c4 {[%emt 0:00:26]} e6 {[%emt 0:00:00]} 3. g3 {[%emt 0:01:16]} a6 {[%emt 0:00:10]} 4. b3 {[%emt 0:01:42]} b5 {[%emt 0:00:58]} 5. Nc3 {[%emt 0:07:16]} d5 {[%emt 0:34:23]} 6. cxd5 {[%emt 0:01:22]} exd5 {[%emt 0:03:53]} 7. d4 {[%emt 0:12:26]} Be7 {[%emt 0:00:14]} 8. Bg2 {[%emt 0:01:05]} O-O {[%emt 0:00:05]} 9. O-O {[%emt 0:04:57]} Bb7 $11 {[%emt 0:08:25]} 10. Ne5 {[%emt 0:06:54]} c5 {[%emt 0:09:56]} 11. dxc5 {[%emt 0:00:46]} Bxc5 {[%emt 0:05:24]} 12. Nd3 {[%emt 0:16:57]} Bd4 {[%emt 0:04:50]} 13. Bb2 {[%emt 0:03:13]} Ne4 {[%emt 0:03:42]} 14. Rc1 {[%emt 0:10:54]} Qb6 {[%emt 0:06:27]} 15. e3 {[%emt 0:10:35]} Bf6 {[%emt 0:05:28]} 16. Qg4 {[%emt 0:10:07]} Re8 {[%emt 0:04:52]} 17. Rfd1 {[%emt 0:02:35]} g6 {[%emt 0:05:16]} 18. Ba1 {[%emt 0:01:31]} h5 {[%emt 0:01:04]} 19. Qe2 {[%emt 0:03:50]} Nxc3 {[%emt 0:00:04]} 20. Bxc3 {[%emt 0:00:49]} d4 {[%emt 0:02:38]} 21. Bxb7 {[%emt 0:00:07]} Qxb7 {[%emt 0:00:54]} 22. Nc5 {[%emt 0:00:59]} Qd5 {[%emt 0:01:19]} 23. Ba1 {[%emt 0:01:04]} Nc6 {[%emt 0:00:56]} 24. Qb2 {[%emt 0:00:32]} Qf3 {[%emt 0:00:28]} 25. Re1 {[%emt 0:00:25]} dxe3 {[%emt 0:00:29]} 26. Qe2 {[%emt 0:00:36]} exf2+ {[%emt 0:00:12]} 27. Qxf2 {[%emt 0:00:28]} Rxe1+ {[%emt 0:00:17]} 28. Rxe1 {[%emt 0:00:24]} Qxf2+ {[%emt 0:00:06]} 29. Kxf2 {[%emt 0:00:03]} Bxa1 {[%emt 0:00:04]} 30. Rxa1 {[%emt 0:00:45]} a5 {[%emt 0:00:33]} 31. Rc1 {[%emt 0:00:34]} Ne5 {[%emt 0:01:19]} 32. h3 {[%emt 0:00:15]} Rc8 {[%emt 0:00:23]} 33. Ke3 {[%emt 0:01:01]} Nc4+ {[%emt 0:01:03]} 34. Kd4 {[%emt 0:00:15]} Nd6 {[%emt 0:00:32]} 35. Kd5 {[%emt 0:00:45]} Nf5 {[%emt 0:00:29]} 36. Rg1 {[%emt 0:00:23]} Ne3+ {[%emt 0:00:27]} 37. Kd6 {[%emt 0:00:35]} Nf5+ {[%emt 0:00:19]} 38. Kd5 {[%emt 0:00:34]} Kf8 {[%emt 0:00:40]} 39. g4 {[%emt 0:00:30]} Ne7+ {[%emt 0:00:00]} 40. Kd4 {[%emt 0:00:00]} Nc6+ {[%emt 0:00:00]} 41. Kd5 {[%emt 0:00:00]} hxg4 {[%emt 0:00:00]} 42. hxg4 {[%emt 0:00:00]} Nb4+ {[%emt 0:00:00]} 43. Kd4 {[%emt 0:00:00]} Nxa2 {[%emt 0:00:00]} 44. Nb7 {[%emt 0:00:00]} Nc1 {[%emt 0:00:00]} 0-1

[Event "47th GRE-chT 2019"]
[Site "Patra"]
[Date "2019.07.03"]
[Round "2.8"]
[White "Sotiropoulos, Anastasios-Theohar"]
[Black "Alexiadis, Hristos"]
[Result "0-1"]
[ECO "A07"]
[WhiteElo "1919"]
[BlackElo "2344"]
[Annotator "NA RC"]
[PlyCount "78"]
[EventDate "2019.07.02"]
[EventCountry "GRE"]
[SourceTitle "playchess.com"]
[Source "ChessBase"]
[SourceQuality "1"]
[TimeControl "5400+30"]

1. Nf3 Nf6 {[%emt 0:01:41]} 2. g3 {[%emt 0:00:00]} d5 {[%emt 0:00:32]} 3. Bg2 {[%emt 0:00:00]} c6 {[%emt 0:00:07]} 4. O-O {[%emt 0:00:00]} Bg4 {[%emt 0:00:16]} 5. h3 {[%emt 0:00:12]} Bh5 {[%emt 0:00:06]} 6. d4 {[%emt 0:00:42] A07: Réti Opening: New York and Capablanca Systems} e6 {[%emt 0:00:23]} 7. c4 {[%emt 0:00:48]} Be7 {[%emt 0:00:11]} (7... Nbd7 8. cxd5 exd5 9. Ne5 Ne4 10. Nd2 Nxd2 11. Bxd2 Nxe5 12. dxe5 Bc5 13. Kh2 O-O {½-½ (31) Svidler,P (2768)-Karjakin,S (2753) Wijk aan Zee 2018}) 8. Qb3 {[%emt 0:06:00]} Qb6 {[%emt 0:00:08]} 9. c5 $146 {[%emt 0:00:05]} ({Predecessor:} 9. Nc3 O-O 10. Bf4 Nbd7 11. c5 Qxb3 12. axb3 Ne4 13. g4 Bg6 14. b4 a6 15. Ra3 {½-½ (15) Margvelashvili,G (2556)-Mulyar,M (2411) Rockville 2014}) 9... Qa6 {[%emt 0:00:04]} 10. Bf4 {[%emt 0:00:11]} b6 {[%emt 0:00:42]} 11. cxb6 {[%emt 0:00:09]} axb6 {[%emt 0:00:05]} 12. Nc3 {[%emt 0:01:13]} O-O {[%emt 0:00:39]} 13. a4 {[%emt 0:02:24]} Nbd7 {[%emt 0:02:30]} 14. g4 {[%emt 0:08:45]} Bg6 {[%emt 0:00:11]} 15. Ne5 {[%emt 0:11:57]} Nxe5 {[%emt 0:00:08]} 16. dxe5 {[%emt 0:00:46]} Nd7 {[%emt 0:01:28]} 17. Qd1 {[%emt 0:09:03]} Qc4 {[%emt 0:03:36]} 18. Bg3 {[%emt 0:05:31]} Nc5 {[%emt 0:00:45]} 19. Rc1 {[%emt 0:15:55]} Qb4 {[%emt 0:07:32]} 20. f4 {[%emt 0:06:24]} d4 $17 {[%emt 0:30:34]} ({Less strong is} 20... Nxa4 21. Nxa4 Qxa4 22. Qxa4 $15) ({Don't take} 20... Qxb2 21. f5 $17) (20... Nb3 $19 21. f5 Nxc1 22. Qxc1 exf5 23. gxf5 Bh5) 21. Nb1 {[%emt 0:11:43]} Be4 {[%emt 0:05:40]} 22. Nd2 {[%emt 0:08:14]} Bxg2 {[%emt 0:02:37]} 23. Kxg2 {[%emt 0:00:01]} Rxa4 {[%emt 0:01:34]} 24. f5 {[%emt 0:03:56]} exf5 {[%emt 0:02:29]} 25. gxf5 {[%emt 0:00:12]} Bg5 {[%emt 0:00:11]} 26. Rc2 {[%emt 0:03:45]} Bxd2 {[%emt 0:01:41]} 27. Rxd2 {[%emt 0:00:57]} Ne4 {[%emt 0:00:17]} 28. Rd3 {[%emt 0:00:26]} Qxb2 {[%emt 0:00:27]} 29. Rb3 {[%emt 0:03:58]} Qa2 {[%emt 0:00:10]} 30. f6 {[%emt 0:01:10]} Nc3 {[%emt 0:01:40]} 31. Qc1 {[%emt 0:00:30]} Qxe2+ {[%emt 0:00:12]} 32. Rf2 {[%emt 0:00:30]} Qe4+ {[%emt 0:00:23]} 33. Kh2 {[%emt 0:00:13]} b5 {[%emt 0:04:06]} 34. Qg5 {[%emt 0:00:29]} Qg6 {[%emt 0:00:06]} 35. Qh4 {[%emt 0:00:42]} d3 {[%emt 0:03:19]} 36. Bf4 {[%emt 0:00:31]} Ne2 {[%emt 0:05:56]} 37. Rb1 {[%emt 0:00:36]} Rfa8 {[%emt 0:04:57]} 38. Rbf1 {[%emt 0:00:25]} Nxf4 {[%emt 0:01:05]} 39. Rxf4 {[%emt 0:00:17]} Rxf4 {[%emt 0:00:06]} 0-1

[Event "47th GRE-chT 2019"]
[Site "Patra"]
[Date "2019.07.03"]
[Round "2.9"]
[White "Spyratos, Nikolaos"]
[Black "Stefanou, Dimitrios"]
[Result "1-0"]
[ECO "C01"]
[WhiteElo "1970"]
[BlackElo "1975"]
[Annotator "NA"]
[PlyCount "67"]
[EventDate "2019.07.02"]
[EventCountry "GRE"]
[SourceTitle "playchess.com"]
[Source "ChessBase"]
[SourceQuality "1"]
[TimeControl "5400+30"]

1. e4 {[%emt 0:00:00]} e6 {[%emt 0:00:00]} 2. d4 {[%emt 0:00:00]} d5 {[%emt 0:00:00]} 3. Nc3 {[%emt 0:00:11]} Bb4 {[%emt 0:00:06]} 4. exd5 {[%emt 0:00:56]} exd5 {[%emt 0:00:04]} 5. Bd3 {[%emt 0:00:10]} Nc6 {[%emt 0:00:24]} 6. a3 {[%emt 0:00:12]} Bxc3+ {[%emt 0:00:18]} 7. bxc3 {[%emt 0:00:13]} Nge7 {[%emt 0:00:15]} 8. Qf3 {[%emt 0:01:23]} Be6 {[%emt 0:00:12]} 9. Ne2 {[%emt 0:04:29]} Qd7 {[%emt 0:03:51]} 10. h3 {[%emt 0:05:30]} O-O-O {[%emt 0:10:22]} 11. O-O {[%emt 0:04:48]} Ng6 {[%emt 0:21:25]} 12. Bb5 {[%emt 0:10:11]} Nh4 {[%emt 0:08:04]} 13. Qh5 {[%emt 0:01:10]} Nf5 {[%emt 0:12:52]} 14. Nf4 {[%emt 0:04:25]} Nd6 $14 {[%emt 0:00:33]} 15. Ba4 {[%emt 0:04:11]} Ne4 {[%emt 0:04:38]} 16. Qf3 {[%emt 0:04:04]} Kb8 {[%emt 0:03:31]} 17. Nd3 {[%emt 0:06:56]} f6 {[%emt 0:02:42]} 18. Qe3 {[%emt 0:03:00]} Qd6 {[%emt 0:03:28]} 19. f3 {[%emt 0:09:20]} Ng3 {[%emt 0:08:55]} 20. Re1 {[%emt 0:00:18]} Rhe8 {[%emt 0:01:19]} 21. Qf2 {[%emt 0:01:27]} g5 {[%emt 0:02:55]} 22. Rb1 {[%emt 0:06:44]} Ka8 {[%emt 0:00:27]} 23. Nc5 {[%emt 0:02:11]} Bc8 {[%emt 0:00:20]} 24. Bxc6 {[%emt 0:05:45]} Rxe1+ {[%emt 0:01:03]} 25. Qxe1 {[%emt 0:00:07]} bxc6 {[%emt 0:00:16]} 26. Be3 {[%emt 0:03:19]} Re8 {[%emt 0:01:35]} 27. c4 {[%emt 0:02:28]} Qe7 {[%emt 0:03:51]} 28. Qb4 {[%emt 0:07:10]} Qxe3+ {[%emt 0:04:41]} 29. Kh2 {[%emt 0:00:05]} Nf1+ {[%emt 0:00:14]} 30. Rxf1 {[%emt 0:00:05]} Qf4+ {[%emt 0:01:55]} 31. Kh1 {[%emt 0:00:07]} Qxd4 {[%emt 0:03:42]} 32. Rb1 {[%emt 0:00:32]} Ba6 {[%emt 0:00:32]} 33. Nxa6 {[%emt 0:00:09]} Qb6 {[%emt 0:00:21]} 34. Qxb6 {[%emt 0:00:06]} 1-0